Workbook

Sheet Corn
A2: What Is My Target Price?
A3: CORN
A4: Your Cost | C4: 600 | F4: =(C4+C6)/C5 -> 3.783783784
A5: YourYield | C5: 185
A6: Desired Profit | C6: 100 | E6: per acre
C8: COST PER ACRE
C9: 500 | D9: =C9+10 -> 510 | E9: 520 | F9: 530 | G9: 540 | H9: 550 | I9: 560 | J9: 570 | K9: 580 | L9: 590 | M9: 600 | N9: 610 | O9: 620 | P9: 630 | Q9: 640 | R9: 650
B10: 125 | C10: =(C9+$C$6)/$B$10 -> 4.8 | D10: 4.88 | E10: 4.96 | F10: 5.04 | G10: 5.12 | H10: 5.2 | I10: 5.28 | J10: 5.36 | K10: 5.44 | L10: 5.52 | M10: 5.6 | N10: 5.68 | O10: 5.76 | P10: 5.84 | Q10: 5.92 | R10: 6
B11: =B10+5 -> 130 | C11: =(C9+$C$6)/$B$11 -> 4.615384615 | D11: 4.692307692 | E11: 4.769230769 | F11: 4.846153846 | G11: 4.923076923 | H11: 5 | I11: 5.076923077 | J11: 5.153846154 | K11: 5.230769231 | L11: 5.307692308 | M11: 5.384615385 | N11: 5.461538462 | O11: 5.538461538 | P11: 5.615384615 | Q11: 5.692307692 | R11: 5.769230769
B12: 135 | C12: =(C9+$C$6)/$B$12 -> 4.444444444 | D12: 4.518518519 | E12: 4.592592593 | F12: 4.666666667 | G12: 4.740740741 | H12: 4.814814815 | I12: 4.888888889 | J12: 4.962962963 | K12: 5.037037037 | L12: 5.111111111 | M12: 5.185185185 | N12: 5.259259259 | O12: 5.333333333 | P12: 5.407407407 | Q12: 5.481481481 | R12: 5.555555556
B13: 140 | C13: =(C9+$C$6)/$B$13 -> 4.285714286 | D13: 4.357142857 | E13: 4.428571429 | F13: 4.5 | G13: 4.571428571 | H13: 4.642857143 | I13: 4.714285714 | J13: 4.785714286 | K13: 4.857142857 | L13: 4.928571429 | M13: 5 | N13: 5.071428571 | O13: 5.142857143 | P13: 5.214285714 | Q13: 5.285714286 | R13: 5.357142857
A14: Y | B14: 145 | C14: =(C9+$C$6)/$B$14 -> 4.137931034 | D14: 4.206896552 | E14: 4.275862069 | F14: 4.344827586 | G14: 4.413793103 | H14: 4.482758621 | I14: 4.551724138 | J14: 4.620689655 | K14: 4.689655172 | L14: 4.75862069 | M14: 4.827586207 | N14: 4.896551724 | O14: 4.965517241 | P14: 5.034482759 | Q14: 5.103448276 | R14: 5.172413793
A15: I | B15: 150 | C15: =(C9+$C$6)/$B$15 -> 4 | D15: 4.066666667 | E15: 4.133333333 | F15: 4.2 | G15: 4.266666667 | H15: 4.333333333 | I15: 4.4 | J15: 4.466666667 | K15: 4.533333333 | L15: 4.6 | M15: 4.666666667 | N15: 4.733333333 | O15: 4.8 | P15: 4.866666667 | Q15: 4.933333333 | R15: 5
A16: E | B16: 155 | C16: =(C9+$C$6)/$B$16 -> 3.870967742 | D16: 3.935483871 | E16: 4 | F16: 4.064516129 | G16: 4.129032258 | H16: 4.193548387 | I16: 4.258064516 | J16: 4.322580645 | K16: 4.387096774 | L16: 4.451612903 | M16: 4.516129032 | N16: 4.580645161 | O16: 4.64516129 | P16: 4.709677419 | Q16: 4.774193548 | R16: 4.838709677
A17: L | B17: 160 | C17: =(C9+$C$6)/$B$17 -> 3.75 | D17: 3.8125 | E17: 3.875 | F17: 3.9375 | G17: 4 | H17: 4.0625 | I17: 4.125 | J17: 4.1875 | K17: 4.25 | L17: 4.3125 | M17: 4.375 | N17: 4.4375 | O17: 4.5 | P17: 4.5625 | Q17: 4.625 | R17: 4.6875
A18: D | B18: 165 | C18: =(C9+$C$6)/$B$18 -> 3.636363636 | D18: 3.696969697 | E18: 3.757575758 | F18: 3.818181818 | G18: 3.878787879 | H18: 3.939393939 | I18: 4 | J18: 4.060606061 | K18: 4.121212121 | L18: 4.181818182 | M18: 4.242424242 | N18: 4.303030303 | O18: 4.363636364 | P18: 4.424242424 | Q18: 4.484848485 | R18: 4.545454545
B19: 170 | C19: =(C9+$C$6)/$B$19 -> 3.529411765 | D19: 3.588235294 | E19: 3.647058824 | F19: 3.705882353 | G19: 3.764705882 | H19: 3.823529412 | I19: 3.882352941 | J19: 3.941176471 | K19: 4 | L19: 4.058823529 | M19: 4.117647059 | N19: 4.176470588 | O19: 4.235294118 | P19: 4.294117647 | Q19: 4.352941176 | R19: 4.411764706
A20: P | B20: 175 | C20: =(C9+$C$6)/$B$20 -> 3.428571429 | D20: 3.485714286 | E20: 3.542857143 | F20: 3.6 | G20: 3.657142857 | H20: 3.714285714 | I20: 3.771428571 | J20: 3.828571429 | K20: 3.885714286 | L20: 3.942857143 | M20: 4 | N20: 4.057142857 | O20: 4.114285714 | P20: 4.171428571 | Q20: 4.228571429 | R20: 4.285714286
A21: E | B21: 180 | C21: =(C9+$C$6)/$B$21 -> 3.333333333 | D21: 3.388888889 | E21: 3.444444444 | F21: 3.5 | G21: 3.555555556 | H21: 3.611111111 | I21: 3.666666667 | J21: 3.722222222 | K21: 3.777777778 | L21: 3.833333333 | M21: 3.888888889 | N21: 3.944444444 | O21: 4 | P21: 4.055555556 | Q21: 4.111111111 | R21: 4.166666667
A22: R | B22: 185 | C22: =(C9+$C$6)/$B$22 -> 3.243243243 | D22: 3.297297297 | E22: 3.351351351 | F22: 3.405405405 | G22: 3.459459459 | H22: 3.513513514 | I22: 3.567567568 | J22: 3.621621622 | K22: 3.675675676 | L22: 3.72972973 | M22: 3.783783784 | N22: 3.837837838 | O22: 3.891891892 | P22: 3.945945946 | Q22: 4 | R22: 4.054054054
B23: 190 | C23: =(C9+$C$6)/$B$23 -> 3.157894737 | D23: 3.210526316 | E23: 3.263157895 | F23: 3.315789474 | G23: 3.368421053 | H23: 3.421052632 | I23: 3.473684211 | J23: 3.526315789 | K23: 3.578947368 | L23: 3.631578947 | M23: 3.684210526 | N23: 3.736842105 | O23: 3.789473684 | P23: 3.842105263 | Q23: 3.894736842 | R23: 3.947368421
A24: A | B24: 195 | C24: =(C9+$C$6)/$B$24 -> 3.076923077 | D24: 3.128205128 | E24: 3.179487179 | F24: 3.230769231 | G24: 3.282051282 | H24: 3.333333333 | I24: 3.384615385 | J24: 3.435897436 | K24: 3.487179487 | L24: 3.538461538 | M24: 3.58974359 | N24: 3.641025641 | O24: 3.692307692 | P24: 3.743589744 | Q24: 3.794871795 | R24: 3.846153846
A25: C | B25: 200 | C25: =(C9+$C$6)/$B$25 -> 3 | D25: 3.05 | E25: 3.1 | F25: 3.15 | G25: 3.2 | H25: 3.25 | I25: 3.3 | J25: 3.35 | K25: 3.4 | L25: 3.45 | M25: 3.5 | N25: 3.55 | O25: 3.6 | P25: 3.65 | Q25: 3.7 | R25: 3.75
A26: R | B26: 205 | C26: =(C9+$C$6)/$B$26 -> 2.926829268 | D26: 2.975609756 | E26: 3.024390244 | F26: 3.073170732 | G26: 3.12195122 | H26: 3.170731707 | I26: 3.219512195 | J26: 3.268292683 | K26: 3.317073171 | L26: 3.365853659 | M26: 3.414634146 | N26: 3.463414634 | O26: 3.512195122 | P26: 3.56097561 | Q26: 3.609756098 | R26: 3.658536585
A27: E | B27: 210 | C27: =(C9+$C$6)/$B$27 -> 2.857142857 | D27: 2.904761905 | E27: 2.952380952 | F27: 3 | G27: 3.047619048 | H27: 3.095238095 | I27: 3.142857143 | J27: 3.19047619 | K27: 3.238095238 | L27: 3.285714286 | M27: 3.333333333 | N27: 3.380952381 | O27: 3.428571429 | P27: 3.476190476 | Q27: 3.523809524 | R27: 3.571428571
B28: 215 | C28: =(C9+$C$6)/$B$28 -> 2.790697674 | D28: 2.837209302 | E28: 2.88372093 | F28: 2.930232558 | G28: 2.976744186 | H28: 3.023255814 | I28: 3.069767442 | J28: 3.11627907 | K28: 3.162790698 | L28: 3.209302326 | M28: 3.255813953 | N28: 3.302325581 | O28: 3.348837209 | P28: 3.395348837 | Q28: 3.441860465 | R28: 3.488372093
B29: 220 | C29: =(C9+$C$6)/$B$29 -> 2.727272727 | D29: 2.772727273 | E29: 2.818181818 | F29: 2.863636364 | G29: 2.909090909 | H29: 2.954545455 | I29: 3 | J29: 3.045454545 | K29: 3.090909091 | L29: 3.136363636 | M29: 3.181818182 | N29: 3.227272727 | O29: 3.272727273 | P29: 3.318181818 | Q29: 3.363636364 | R29: 3.409090909
B30: 225 | C30: =(C9+$C$6)/$B$30 -> 2.666666667 | D30: 2.711111111 | E30: 2.755555556 | F30: 2.8 | G30: 2.844444444 | H30: 2.888888889 | I30: 2.933333333 | J30: 2.977777778 | K30: 3.022222222 | L30: 3.066666667 | M30: 3.111111111 | N30: 3.155555556 | O30: 3.2 | P30: 3.244444444 | Q30: 3.288888889 | R30: 3.333333333
B31: 230 | C31: =(C9+$C$6)/$B$31 -> 2.608695652 | D31: 2.652173913 | E31: 2.695652174 | F31: 2.739130435 | G31: 2.782608696 | H31: 2.826086957 | I31: 2.869565217 | J31: 2.913043478 | K31: 2.956521739 | L31: 3 | M31: 3.043478261 | N31: 3.086956522 | O31: 3.130434783 | P31: 3.173913043 | Q31: 3.217391304 | R31: 3.260869565

Sheet Beans
A2: What Is My Target Price?
A3: SOYBEANS
A4: Your Cost | C4: 300 | F4: =(C4+C6)/C5 -> 8.888888889
A5: YourYield | C5: 45
A6: Desired Profit | C6: 100 | E6: per acre
C8: COST PER ACRE
C9: 250 | D9: =C9+10 -> 260 | E9: 270 | F9: 280 | G9: 290 | H9: 300 | I9: 310 | J9: 320 | K9: 330 | L9: 340 | M9: 350
B10: 20 | C10: =(C9+$C$6)/$B$10 -> 17.5 | D10: 18 | E10: 18.5 | F10: 19 | G10: 19.5 | H10: 20 | I10: 20.5 | J10: 21 | K10: 21.5 | L10: 22 | M10: 22.5
B11: =B10+5 -> 25 | C11: =(C9+$C$6)/$B$11 -> 14 | D11: 14.4 | E11: 14.8 | F11: 15.2 | G11: 15.6 | H11: 16 | I11: 16.4 | J11: 16.8 | K11: 17.2 | L11: 17.6 | M11: 18
B12: 30 | C12: =(C9+$C$6)/$B$12 -> 11.66666667 | D12: 12 | E12: 12.33333333 | F12: 12.66666667 | G12: 13 | H12: 13.33333333 | I12: 13.66666667 | J12: 14 | K12: 14.33333333 | L12: 14.66666667 | M12: 15
B13: 35 | C13: =(C9+$C$6)/$B$13 -> 10 | D13: 10.28571429 | E13: 10.57142857 | F13: 10.85714286 | G13: 11.14285714 | H13: 11.42857143 | I13: 11.71428571 | J13: 12 | K13: 12.28571429 | L13: 12.57142857 | M13: 12.85714286
A14: Y | B14: 40 | C14: =(C9+$C$6)/$B$14 -> 8.75 | D14: 9 | E14: 9.25 | F14: 9.5 | G14: 9.75 | H14: 10 | I14: 10.25 | J14: 10.5 | K14: 10.75 | L14: 11 | M14: 11.25
A15: I | B15: 45 | C15: =(C9+$C$6)/$B$15 -> 7.777777778 | D15: 8 | E15: 8.222222222 | F15: 8.444444444 | G15: 8.666666667 | H15: 8.888888889 | I15: 9.111111111 | J15: 9.333333333 | K15: 9.555555556 | L15: 9.777777778 | M15: 10
A16: E | B16: 50 | C16: =(C9+$C$6)/$B$16 -> 7 | D16: 7.2 | E16: 7.4 | F16: 7.6 | G16: 7.8 | H16: 8 | I16: 8.2 | J16: 8.4 | K16: 8.6 | L16: 8.8 | M16: 9
A17: L | B17: 55 | C17: =(C9+$C$6)/$B$17 -> 6.363636364 | D17: 6.545454545 | E17: 6.727272727 | F17: 6.909090909 | G17: 7.090909091 | H17: 7.272727273 | I17: 7.454545455 | J17: 7.636363636 | K17: 7.818181818 | L17: 8 | M17: 8.181818182
A18: D | B18: 60 | C18: =(C9+$C$6)/$B$18 -> 5.833333333 | D18: 6 | E18: 6.166666667 | F18: 6.333333333 | G18: 6.5 | H18: 6.666666667 | I18: 6.833333333 | J18: 7 | K18: 7.166666667 | L18: 7.333333333 | M18: 7.5
B19: 65 | C19: =(C9+$C$6)/$B$19 -> 5.384615385 | D19: 5.538461538 | E19: 5.692307692 | F19: 5.846153846 | G19: 6 | H19: 6.153846154 | I19: 6.307692308 | J19: 6.461538462 | K19: 6.615384615 | L19: 6.769230769 | M19: 6.923076923

Sheet Wheat
A2: What Is My Target Price?
A3: WHEAT
A4: Your Cost | C4: 225 | F4: =(C4+C6)/C5 -> 6.5
A5: YourYield | C5: 50
A6: Desired Profit | C6: 100 | E6: per acre
C8: COST PER ACRE
C9: 175 | D9: =C9+10 -> 185 | E9: 195 | F9: 205 | G9: 215 | H9: 225 | I9: 235 | J9: 245 | K9: 255 | L9: 265 | M9: 275
B10: 20 | C10: =(C9+$C$6)/$B$10 -> 13.75 | D10: 14.25 | E10: 14.75 | F10: 15.25 | G10: 15.75 | H10: 16.25 | I10: 16.75 | J10: 17.25 | K10: 17.75 | L10: 18.25 | M10: 18.75
B11: =B10+5 -> 25 | C11: =(C9+$C$6)/$B$11 -> 11 | D11: 11.4 | E11: 11.8 | F11: 12.2 | G11: 12.6 | H11: 13 | I11: 13.4 | J11: 13.8 | K11: 14.2 | L11: 14.6 | M11: 15
B12: 30 | C12: =(C9+$C$6)/$B$12 -> 9.166666667 | D12: 9.5 | E12: 9.833333333 | F12: 10.16666667 | G12: 10.5 | H12: 10.83333333 | I12: 11.16666667 | J12: 11.5 | K12: 11.83333333 | L12: 12.16666667 | M12: 12.5
B13: 35 | C13: =(C9+$C$6)/$B$13 -> 7.857142857 | D13: 8.142857143 | E13: 8.428571429 | F13: 8.714285714 | G13: 9 | H13: 9.285714286 | I13: 9.571428571 | J13: 9.857142857 | K13: 10.14285714 | L13: 10.42857143 | M13: 10.71428571
A14: Y | B14: 40 | C14: =(C9+$C$6)/$B$14 -> 6.875 | D14: 7.125 | E14: 7.375 | F14: 7.625 | G14: 7.875 | H14: 8.125 | I14: 8.375 | J14: 8.625 | K14: 8.875 | L14: 9.125 | M14: 9.375
A15: I | B15: 45 | C15: =(C9+$C$6)/$B$15 -> 6.111111111 | D15: 6.333333333 | E15: 6.555555556 | F15: 6.777777778 | G15: 7 | H15: 7.222222222 | I15: 7.444444444 | J15: 7.666666667 | K15: 7.888888889 | L15: 8.111111111 | M15: 8.333333333
A16: E | B16: 50 | C16: =(C9+$C$6)/$B$16 -> 5.5 | D16: 5.7 | E16: 5.9 | F16: 6.1 | G16: 6.3 | H16: 6.5 | I16: 6.7 | J16: 6.9 | K16: 7.1 | L16: 7.3 | M16: 7.5
A17: L | B17: 55 | C17: =(C9+$C$6)/$B$17 -> 5 | D17: 5.181818182 | E17: 5.363636364 | F17: 5.545454545 | G17: 5.727272727 | H17: 5.909090909 | I17: 6.090909091 | J17: 6.272727273 | K17: 6.454545455 | L17: 6.636363636 | M17: 6.818181818
A18: D | B18: 60 | C18: =(C9+$C$6)/$B$18 -> 4.583333333 | D18: 4.75 | E18: 4.916666667 | F18: 5.083333333 | G18: 5.25 | H18: 5.416666667 | I18: 5.583333333 | J18: 5.75 | K18: 5.916666667 | L18: 6.083333333 | M18: 6.25
B19: 65 | C19: =(C9+$C$6)/$B$19 -> 4.230769231 | D19: 4.384615385 | E19: 4.538461538 | F19: 4.692307692 | G19: 4.846153846 | H19: 5 | I19: 5.153846154 | J19: 5.307692308 | K19: 5.461538462 | L19: 5.615384615 | M19: 5.769230769

Sheet WORKSHEETS
C4: TARGET PRICE FORMULA | F4: PROFIT PER ACRE | I4: TARGET R.O.I. FORMULA
C6: CROP | D6: CORN | F6: CROP | G6: CORN | I6: CROP | J6: CORN
C7: + COST PER ACRE | D7: 600 | F7: CURRENT CASH PRICE | G7: 3 | I7: + COST PER ACRE | J7: 600
C8: + DESIRED PROFIT PER ACRE | D8: 200 | F8: X AVERAGE YIELD | G8: 200 | I8: + DESIRED R.O.I. | J8: 0.2
C9: = TOTAL DOLLARS NEEDED | D9: =+D7+D8 -> 800 | F9: = TOTAL DOLLARS AVAILABLE | G9: =+G7*G8 -> 600 | I9: = PROFIT/ACRE NEEDED | J9: =+J7*J8 -> 120
C10: / AVERAGE YIELD | D10: 200 | F10: - COST PER ACRE | G10: 550 | I10: / AVERAGE YIELD | J10: 200
C11: = TARGET PRICE | D11: =+D9/D10 -> 4 | F11: = PROFIT PER ACRE | G11: =+G9-G10 -> 50 | I11: = TARGET PRICE | J11: =(+J7+J9)/J10 -> 3.6
C13: RETURN ON INVESTMENT | D13: =+D8/D7 -> 0.3333333333 | F13: RETURN ON INVESTMENT | G13: =+G11/G10 -> 0.09090909091
C14: (Profit per acre / Cost per acre) | F14: (Profit per acre / Cost per acre)

Sheet BLANKS
C4: TARGET PRICE FORMULA | F4: PROFIT PER ACRE | I4: TARGET R.O.I. FORMULA
C6: CROP | F6: CROP | I6: CROP
C7: + COST PER ACRE | F7: CURRENT CASH PRICE | I7: + COST PER ACRE
C8: + DESIRED PROFIT PER ACRE | F8: X AVERAGE YIELD | I8: + DESIRED R.O.I.
C9: = TOTAL DOLLARS NEEDED | F9: = TOTAL DOLLARS AVAILABLE | I9: = PROFIT/ACRE NEEDED
C10: / AVERAGE YIELD | F10: - COST PER ACRE | I10: / AVERAGE YIELD
C11: = TARGET PRICE | F11: = PROFIT PER ACRE | I11: = TARGET PRICE
C13: RETURN ON INVESTMENT | F13: RETURN ON INVESTMENT
C14: (Profit per acre / Cost per acre) | F14: (Profit per acre / Cost per acre)
